[Event "Titled Tuesday Blitz March 29 Late 2022"]
[White "Cardoso Cardoso, Jose Gabriel"]
[Black "Barria Zuniga, Daniel"]
[WhiteFideId "4430492"]
[BlackFideId "3400816"]
[WhiteElo "2451"]
[BlackElo "2414"]
[Result "1-0"]
[Round "08"]
[TimeControl "180+1"]
[Date "2022.03.29"]
[WhiteClock "0:00:03"]
[BlackClock "0:00:02"]

1. Nf3 {[%clk 0:02:33]}  h6 {[%clk 0:02:55]} 2. e4 {[%clk 0:02:27]}  e6 {[%clk 0:02:54]} 3. d4 {[%clk 0:02:25]}  d5 {[%clk 0:02:50]} 4. e5 {[%clk 0:02:24]}  c5 {[%clk 0:02:48]} 5. c3 {[%clk 0:02:23]}  Nc6 {[%clk 0:02:48]} 6. a3 {[%clk 0:02:17]}  g5 {[%clk 0:02:46]} 7. h3 {[%clk 0:01:59]}  Bd7 {[%clk 0:02:21]} 8. Bd3 {[%clk 0:01:52]}  Qc7 {[%clk 0:02:13]} 9. b4 {[%clk 0:01:49]}  c4 {[%clk 0:02:08]} 10. Bc2 {[%clk 0:01:47]}  O-O-O {[%clk 0:02:08]} 11. a4 {[%clk 0:01:45]}  f5 {[%clk 0:02:03]} 12. exf6 {[%clk 0:01:40]}  Nxf6 {[%clk 0:02:00]} 13. b5 {[%clk 0:01:40]}  Na5 {[%clk 0:01:58]} 14. Ne5 {[%clk 0:01:40]}  Be8 {[%clk 0:01:56]} 15. Ba3 {[%clk 0:01:39]}  Bxa3 {[%clk 0:01:54]} 16. Rxa3 {[%clk 0:01:35]}  Nd7 {[%clk 0:01:54]} 17. Nxd7 {[%clk 0:01:11]}  Bxd7 {[%clk 0:01:53]} 18. Qe2 {[%clk 0:01:08]}  Rdf8 {[%clk 0:01:51]} 19. Nd2 {[%clk 0:01:06]}  Rf4 {[%clk 0:01:36]} 20. Nf3 {[%clk 0:00:50]}  Rhf8 {[%clk 0:01:35]} 21. Ne5 {[%clk 0:00:47]}  Rxf2 {[%clk 0:01:22]} 22. Qxf2 {[%clk 0:00:46]}  Rxf2 {[%clk 0:01:22]} 23. Kxf2 {[%clk 0:00:47]}  a6 {[%clk 0:01:10]} 24. Rb1 {[%clk 0:00:36]}  axb5 {[%clk 0:01:07]} 25. axb5 {[%clk 0:00:34]}  b6 {[%clk 0:01:07]} 26. Ke3 {[%clk 0:00:31]}  Qd6 {[%clk 0:01:05]} 27. Raa1 {[%clk 0:00:29]}  Be8 {[%clk 0:00:59]} 28. g3 {[%clk 0:00:21]}  Kd8 {[%clk 0:00:57]} 29. Rf1 {[%clk 0:00:19]}  Ke7 {[%clk 0:00:53]} 30. Rf2 {[%clk 0:00:17]}  Bxb5 {[%clk 0:00:46]} 31. Rf7+ {[%clk 0:00:16]}  Kd8 {[%clk 0:00:44]} 32. Ra7 {[%clk 0:00:14]}  Be8 {[%clk 0:00:43]} 33. Rf1 {[%clk 0:00:12]}  Qa3 {[%clk 0:00:37]} 34. Ra8+ {[%clk 0:00:05]}  Ke7 {[%clk 0:00:35]} 35. Ra7+ {[%clk 0:00:05]}  Kd6 {[%clk 0:00:32]} 36. Rff7 {[%clk 0:00:03]}  Qxc3+ {[%clk 0:00:26]} 37. Bd3 {[%clk 0:00:03]}  Qe1+ {[%clk 0:00:15]} 38. Kf3 {[%clk 0:00:03]}  Qh1+ {[%clk 0:00:03]} 39. Kf2 {[%clk 0:00:02]}  Qh2+ {[%clk 0:00:02]} 40. Kf1 {[%clk 0:00:02]}  Qxh3+ {[%clk 0:00:02]} 41. Kf2 {[%clk 0:00:03]}  Qh2+ {[%clk 0:00:02]} 42. Kf3 {[%clk 0:00:03]}  Qh1+ {[%clk 0:00:02]} 43. Kg4 {[%clk 0:00:03]} 1-0


[Site "https://www.chess.com"]

[Event "Titled Tuesday Blitz March 29 Late 2022"]
[White "Dahlgren, James Allen"]
[Black "Alimpic, Aleksa"]
[WhiteFideId "22256873"]
[BlackFideId "974323"]
[WhiteElo "2125"]
[BlackElo "2130"]
[Result "0-1"]
[Round "08"]
[TimeControl "180+1"]
[Date "2022.03.30"]
[WhiteClock "0:00:01"]
[BlackClock "0:00:04"]

1. f4 {[%clk 0:03:00]}  d5 {[%clk 0:02:56]} 2. Nf3 {[%clk 0:03:00]}  Bf5 {[%clk 0:02:55]} 3. b3 {[%clk 0:03:00]}  e6 {[%clk 0:02:55]} 4. Bb2 {[%clk 0:03:01]}  Nf6 {[%clk 0:02:55]} 5. d3 {[%clk 0:03:01]}  Be7 {[%clk 0:02:54]} 6. Nbd2 {[%clk 0:03:02]}  O-O {[%clk 0:02:53]} 7. h3 {[%clk 0:03:02]}  c5 {[%clk 0:02:48]} 8. g4 {[%clk 0:03:02]}  Bg6 {[%clk 0:02:48]} 9. Bg2 {[%clk 0:03:03]}  Nc6 {[%clk 0:02:48]} 10. O-O {[%clk 0:03:03]}  Nd7 {[%clk 0:02:35]} 11. e4 {[%clk 0:03:03]}  f6 {[%clk 0:01:54]} 12. f5 {[%clk 0:03:01]}  Bf7 {[%clk 0:01:51]} 13. c4 {[%clk 0:02:46]}  d4 {[%clk 0:01:48]} 14. Qe1 {[%clk 0:02:33]}  Nde5 {[%clk 0:01:44]} 15. Nxe5 {[%clk 0:02:26]}  Nxe5 {[%clk 0:01:45]} 16. Qe2 {[%clk 0:02:15]}  a6 {[%clk 0:01:44]} 17. Nf3 {[%clk 0:02:14]}  Nxf3+ {[%clk 0:01:41]} 18. Bxf3 {[%clk 0:02:12]}  e5 {[%clk 0:01:41]} 19. h4 {[%clk 0:02:11]}  b5 {[%clk 0:01:39]} 20. Rad1 {[%clk 0:02:07]}  bxc4 {[%clk 0:01:29]} 21. dxc4 {[%clk 0:02:08]}  a5 {[%clk 0:01:25]} 22. a4 {[%clk 0:02:04]}  Rb8 {[%clk 0:01:19]} 23. Rd3 {[%clk 0:02:03]}  Qb6 {[%clk 0:01:05]} 24. Rb1 {[%clk 0:01:58]}  Rb7 {[%clk 0:01:01]} 25. Qg2 {[%clk 0:01:53]}  h6 {[%clk 0:00:58]} 26. Bd1 {[%clk 0:01:51]}  Rfb8 {[%clk 0:00:46]} 27. Bc2 {[%clk 0:01:48]}  Qd8 {[%clk 0:00:43]} 28. Rf1 {[%clk 0:01:14]}  Bxc4 {[%clk 0:00:38]} 29. bxc4 {[%clk 0:01:15]}  Rxb2 {[%clk 0:00:38]} 30. Rd2 {[%clk 0:01:09]}  Qb6 {[%clk 0:00:24]} 31. Bd3 {[%clk 0:01:08]}  Rxd2 {[%clk 0:00:20]} 32. Qxd2 {[%clk 0:01:09]}  Qb4 {[%clk 0:00:20]} 33. Qxb4 {[%clk 0:01:02]}  cxb4 {[%clk 0:00:19]} 34. Rb1 {[%clk 0:00:47]}  b3 {[%clk 0:00:19]} 35. Kf2 {[%clk 0:00:41]}  b2 {[%clk 0:00:19]} 36. Ke2 {[%clk 0:00:40]}  Kf8 {[%clk 0:00:17]} 37. Bc2 {[%clk 0:00:37]}  Ba3 {[%clk 0:00:14]} 38. Kd3 {[%clk 0:00:36]}  Rb4 {[%clk 0:00:14]} 39. Rd1 {[%clk 0:00:34]}  Ke7 {[%clk 0:00:14]} 40. Rb1 {[%clk 0:00:34]}  Kd6 {[%clk 0:00:14]} 41. Rg1 {[%clk 0:00:32]}  Kc5 {[%clk 0:00:14]} 42. g5 {[%clk 0:00:19]}  hxg5 {[%clk 0:00:15]} 43. hxg5 {[%clk 0:00:18]}  Rxc4 {[%clk 0:00:10]} 44. gxf6 {[%clk 0:00:07]}  gxf6 {[%clk 0:00:11]} 45. Rg8 {[%clk 0:00:04]}  Rc3+ {[%clk 0:00:10]} 46. Kd2 {[%clk 0:00:04]}  Rxc2+ {[%clk 0:00:05]} 47. Kxc2 {[%clk 0:00:05]}  d3+ {[%clk 0:00:05]} 48. Kb1 {[%clk 0:00:05]}  Kd4 {[%clk 0:00:04]} 49. Rd8+ {[%clk 0:00:05]}  Kxe4 {[%clk 0:00:04]} 50. Rxd3 {[%clk 0:00:03]}  Kxd3 {[%clk 0:00:04]} 51. Ka2 {[%clk 0:00:02]}  e4 {[%clk 0:00:03]} 52. Kxa3 {[%clk 0:00:01]}  e3 {[%clk 0:00:04]} 0-1


[Site "https://www.chess.com"]

[Event "Titled Tuesday Blitz March 29 Late 2022"]
[White "De La Colina, Nicolas"]
[Black "Almagro Mazariegos, Sebastian"]
[WhiteFideId "30946921"]
[BlackFideId "2221640"]
[WhiteElo "2046"]
[BlackElo "2273"]
[Result "1-0"]
[Round "08"]
[TimeControl "180+1"]
[Date "2022.03.30"]
[WhiteClock "0:00:10"]
[BlackClock "0:00:13"]

1. e4 {[%clk 0:03:00]}  c5 {[%clk 0:02:59]} 2. c3 {[%clk 0:02:59]}  d5 {[%clk 0:02:59]} 3. exd5 {[%clk 0:02:59]}  Qxd5 {[%clk 0:03:00]} 4. d4 {[%clk 0:02:59]}  Nf6 {[%clk 0:03:00]} 5. Nf3 {[%clk 0:02:59]}  e6 {[%clk 0:03:01]} 6. Na3 {[%clk 0:02:59]}  a6 {[%clk 0:03:01]} 7. Nc4 {[%clk 0:02:57]}  Nbd7 {[%clk 0:03:01]} 8. Be2 {[%clk 0:02:56]}  b5 {[%clk 0:03:01]} 9. Ne3 {[%clk 0:02:56]}  Qd6 {[%clk 0:03:00]} 10. a4 {[%clk 0:02:51]}  b4 {[%clk 0:02:54]} 11. O-O {[%clk 0:02:44]}  Bb7 {[%clk 0:02:52]} 12. Nc4 {[%clk 0:02:27]}  Qc7 {[%clk 0:02:52]} 13. cxb4 {[%clk 0:02:23]}  cxd4 {[%clk 0:02:38]} 14. Qxd4 {[%clk 0:02:15]}  Bxb4 {[%clk 0:02:35]} 15. Bf4 {[%clk 0:02:11]}  Qc6 {[%clk 0:02:14]} 16. Nd6+ {[%clk 0:01:48]}  Bxd6 {[%clk 0:02:13]} 17. Bxd6 {[%clk 0:01:49]}  Qe4 {[%clk 0:01:47]} 18. Qd2 {[%clk 0:01:26]}  Qd5 {[%clk 0:01:32]} 19. Qxd5 {[%clk 0:01:04]}  Nxd5 {[%clk 0:01:28]} 20. Rfd1 {[%clk 0:00:50]}  f6 {[%clk 0:01:27]} 21. Nd4 {[%clk 0:00:40]}  Kf7 {[%clk 0:01:26]} 22. Bg4 {[%clk 0:00:38]}  Rhe8 {[%clk 0:01:14]} 23. Rac1 {[%clk 0:00:38]}  f5 {[%clk 0:01:03]} 24. Bh5+ {[%clk 0:00:37]}  g6 {[%clk 0:01:02]} 25. Bf3 {[%clk 0:00:38]}  Rac8 {[%clk 0:01:02]} 26. a5 {[%clk 0:00:32]}  Rxc1 {[%clk 0:00:56]} 27. Rxc1 {[%clk 0:00:33]}  Rc8 {[%clk 0:00:56]} 28. Rxc8 {[%clk 0:00:29]}  Bxc8 {[%clk 0:00:57]} 29. Bxd5 {[%clk 0:00:22]}  exd5 {[%clk 0:00:56]} 30. Kf1 {[%clk 0:00:23]}  Nf6 {[%clk 0:00:48]} 31. f3 {[%clk 0:00:23]}  Ne8 {[%clk 0:00:47]} 32. Be5 {[%clk 0:00:23]}  Ke7 {[%clk 0:00:43]} 33. Ke2 {[%clk 0:00:23]}  Nd6 {[%clk 0:00:43]} 34. Bxd6+ {[%clk 0:00:23]}  Kxd6 {[%clk 0:00:44]} 35. b4 {[%clk 0:00:21]}  Ke5 {[%clk 0:00:42]} 36. Ke3 {[%clk 0:00:19]}  f4+ {[%clk 0:00:42]} 37. Kd3 {[%clk 0:00:19]}  Bd7 {[%clk 0:00:36]} 38. b5 {[%clk 0:00:08]}  axb5 {[%clk 0:00:18]} 39. a6 {[%clk 0:00:09]}  Bc8 {[%clk 0:00:17]} 40. a7 {[%clk 0:00:10]}  Bb7 {[%clk 0:00:17]} 41. Nxb5 {[%clk 0:00:10]}  g5 {[%clk 0:00:16]} 42. h3 {[%clk 0:00:09]}  h5 {[%clk 0:00:15]} 43. Nc7 {[%clk 0:00:10]}  g4 {[%clk 0:00:15]} 44. hxg4 {[%clk 0:00:11]}  hxg4 {[%clk 0:00:15]} 45. a8=Q {[%clk 0:00:11]}  Bxa8 {[%clk 0:00:14]} 46. Nxa8 {[%clk 0:00:12]}  gxf3 {[%clk 0:00:13]} 47. gxf3 {[%clk 0:00:13]}  Kf5 {[%clk 0:00:14]} 48. Nb6 {[%clk 0:00:12]}  Kg5 {[%clk 0:00:13]} 49. Nxd5 {[%clk 0:00:11]}  Kf5 {[%clk 0:00:13]} 50. Kd4 {[%clk 0:00:10]} 1-0


[Site "https://www.chess.com"]

[Event "Titled Tuesday Blitz March 29 Late 2022"]
[White "Demchenko, Anton"]
[Black "Jary, Sergey"]
[WhiteFideId "4160258"]
[BlackFideId "14110350"]
[WhiteElo "2539"]
[BlackElo "2260"]
[Result "0-1"]
[Round "08"]
[TimeControl "180+1"]
[Date "2022.03.29"]
[WhiteClock "0:00:01"]
[BlackClock "0:00:24"]

1. e4 {[%clk 0:03:00]}  c5 {[%clk 0:03:00]} 2. Nf3 {[%clk 0:03:00]}  Nc6 {[%clk 0:03:00]} 3. Bb5 {[%clk 0:03:00]}  Qc7 {[%clk 0:03:01]} 4. O-O {[%clk 0:02:59]}  a6 {[%clk 0:03:01]} 5. Bxc6 {[%clk 0:03:00]}  Qxc6 {[%clk 0:03:02]} 6. d4 {[%clk 0:02:59]}  cxd4 {[%clk 0:03:01]} 7. Nxd4 {[%clk 0:03:00]}  Qc7 {[%clk 0:03:02]} 8. c4 {[%clk 0:02:55]}  Qxc4 {[%clk 0:02:57]} 9. Nc3 {[%clk 0:02:56]}  e6 {[%clk 0:02:56]} 10. Bf4 {[%clk 0:02:53]}  d6 {[%clk 0:02:45]} 11. Rc1 {[%clk 0:02:45]}  Qb4 {[%clk 0:02:44]} 12. a3 {[%clk 0:02:37]}  Qb6 {[%clk 0:02:21]} 13. Be3 {[%clk 0:02:30]}  Qa5 {[%clk 0:02:18]} 14. b4 {[%clk 0:02:29]}  Qd8 {[%clk 0:02:15]} 15. Ncb5 {[%clk 0:02:27]}  axb5 {[%clk 0:02:06]} 16. Nxb5 {[%clk 0:02:28]}  Bd7 {[%clk 0:02:07]} 17. Nc7+ {[%clk 0:02:27]}  Ke7 {[%clk 0:02:03]} 18. e5 {[%clk 0:02:21]}  f5 {[%clk 0:01:49]} 19. Bg5+ {[%clk 0:01:30]}  Nf6 {[%clk 0:01:49]} 20. Nxa8 {[%clk 0:01:30]}  Qxa8 {[%clk 0:01:41]} 21. exf6+ {[%clk 0:01:12]}  gxf6 {[%clk 0:01:41]} 22. Bh4 {[%clk 0:01:12]}  Bg7 {[%clk 0:01:37]} 23. Qd3 {[%clk 0:01:04]}  Rc8 {[%clk 0:01:30]} 24. Rfd1 {[%clk 0:01:03]}  d5 {[%clk 0:01:26]} 25. Qg3 {[%clk 0:00:52]}  Kf7 {[%clk 0:01:22]} 26. Rc7 {[%clk 0:00:52]}  Rxc7 {[%clk 0:01:16]} 27. Qxc7 {[%clk 0:00:53]}  Qa4 {[%clk 0:01:17]} 28. Rc1 {[%clk 0:00:48]}  d4 {[%clk 0:01:12]} 29. Qd6 {[%clk 0:00:38]}  e5 {[%clk 0:01:06]} 30. h3 {[%clk 0:00:30]}  Bc6 {[%clk 0:01:02]} 31. Qc5 {[%clk 0:00:13]}  h6 {[%clk 0:00:55]} 32. Qc4+ {[%clk 0:00:13]}  Kg6 {[%clk 0:00:52]} 33. Qd3 {[%clk 0:00:10]}  Qb5 {[%clk 0:00:47]} 34. Qg3+ {[%clk 0:00:06]}  Kh7 {[%clk 0:00:40]} 35. Rc5 {[%clk 0:00:06]}  Qb6 {[%clk 0:00:35]} 36. Qb3 {[%clk 0:00:05]}  Bd7 {[%clk 0:00:30]} 37. Qf7 {[%clk 0:00:04]}  Qe6 {[%clk 0:00:27]} 38. Qxe6 {[%clk 0:00:03]}  Bxe6 {[%clk 0:00:28]} 39. Rc1 {[%clk 0:00:02]}  e4 {[%clk 0:00:27]} 40. a4 {[%clk 0:00:02]}  d3 {[%clk 0:00:27]} 41. Rd1 {[%clk 0:00:02]}  Bb3 {[%clk 0:00:25]} 42. Rd2 {[%clk 0:00:02]}  Bxa4 {[%clk 0:00:25]} 43. Bg3 {[%clk 0:00:01]}  Bb5 {[%clk 0:00:25]} 44. Bf4 {[%clk 0:00:01]}  h5 {[%clk 0:00:24]} 45. h4 {[%clk 0:00:01]}  Bh6 {[%clk 0:00:24]} 0-1


[Site "https://www.chess.com"]

[Event "Titled Tuesday Blitz March 29 Late 2022"]
[White "Dreev, Aleksey"]
[Black "Mikhailov, Viacheslav"]
[WhiteFideId "4100107"]
[BlackFideId "4187369"]
[WhiteElo "2625"]
[BlackElo "2381"]
[Result "1-0"]
[Round "08"]
[TimeControl "180+1"]
[Date "2022.03.29"]
[WhiteClock "0:00:06"]
[BlackClock "0:00:01"]

1. d4 {[%clk 0:03:00]}  Nf6 {[%clk 0:02:59]} 2. c4 {[%clk 0:03:00]}  g6 {[%clk 0:03:00]} 3. Nc3 {[%clk 0:03:00]}  Bg7 {[%clk 0:03:00]} 4. e4 {[%clk 0:03:01]}  O-O {[%clk 0:03:01]} 5. Bd3 {[%clk 0:03:01]}  d6 {[%clk 0:03:02]} 6. Nge2 {[%clk 0:03:01]}  e5 {[%clk 0:03:02]} 7. d5 {[%clk 0:02:59]}  Nbd7 {[%clk 0:03:02]} 8. O-O {[%clk 0:02:58]}  Nc5 {[%clk 0:03:01]} 9. Bc2 {[%clk 0:02:58]}  a5 {[%clk 0:03:01]} 10. b3 {[%clk 0:02:54]}  c6 {[%clk 0:03:01]} 11. h3 {[%clk 0:02:42]}  Bd7 {[%clk 0:02:49]} 12. Be3 {[%clk 0:02:40]}  cxd5 {[%clk 0:02:49]} 13. exd5 {[%clk 0:02:32]}  Rc8 {[%clk 0:02:39]} 14. Qd2 {[%clk 0:02:31]}  Nh5 {[%clk 0:02:33]} 15. a3 {[%clk 0:02:25]}  f5 {[%clk 0:02:17]} 16. b4 {[%clk 0:02:17]}  axb4 {[%clk 0:02:17]} 17. axb4 {[%clk 0:02:17]}  Na6 {[%clk 0:02:16]} 18. Nb5 {[%clk 0:02:15]}  f4 {[%clk 0:02:09]} 19. Nxd6 {[%clk 0:02:14]}  fxe3 {[%clk 0:02:07]} 20. fxe3 {[%clk 0:02:14]}  Bxh3 {[%clk 0:01:40]} 21. Nxc8 {[%clk 0:02:06]}  Bxc8 {[%clk 0:01:09]} 22. c5 {[%clk 0:01:50]}  Qg5 {[%clk 0:01:05]} 23. d6 {[%clk 0:01:44]}  Bh3 {[%clk 0:01:04]} 24. Rxf8+ {[%clk 0:01:29]}  Kxf8 {[%clk 0:01:03]} 25. Be4 {[%clk 0:01:29]}  Bf6 {[%clk 0:00:14]} 26. Rf1 {[%clk 0:01:22]}  Kg7 {[%clk 0:00:14]} 27. d7 {[%clk 0:01:01]}  Bd8 {[%clk 0:00:12]} 28. Bxb7 {[%clk 0:00:51]}  Nxb4 {[%clk 0:00:12]} 29. Be4 {[%clk 0:00:50]}  Na6 {[%clk 0:00:10]} 30. c6 {[%clk 0:00:48]}  Nc5 {[%clk 0:00:11]} 31. Nc3 {[%clk 0:00:48]}  Nxe4 {[%clk 0:00:10]} 32. Nxe4 {[%clk 0:00:48]}  Qg4 {[%clk 0:00:11]} 33. Qf2 {[%clk 0:00:30]}  Kh6 {[%clk 0:00:07]} 34. Qf3 {[%clk 0:00:28]}  Bb6 {[%clk 0:00:05]} 35. Qxg4 {[%clk 0:00:26]}  Bxg4 {[%clk 0:00:06]} 36. Nc5 {[%clk 0:00:20]}  Ng3 {[%clk 0:00:04]} 37. Rb1 {[%clk 0:00:18]}  Bxc5 {[%clk 0:00:03]} 38. d8=Q {[%clk 0:00:18]}  Bxe3+ {[%clk 0:00:04]} 39. Kh2 {[%clk 0:00:18]}  Bf4 {[%clk 0:00:04]} 40. Qh4+ {[%clk 0:00:17]}  Nh5+ {[%clk 0:00:05]} 41. Kh1 {[%clk 0:00:16]}  Bf5 {[%clk 0:00:04]} 42. Rf1 {[%clk 0:00:15]}  g5 {[%clk 0:00:03]} 43. Rxf4 {[%clk 0:00:15]}  gxh4 {[%clk 0:00:03]} 44. Rc4 {[%clk 0:00:10]}  Be6 {[%clk 0:00:02]} 45. c7 {[%clk 0:00:10]}  Bc8 {[%clk 0:00:03]} 46. Kh2 {[%clk 0:00:07]}  Nf6 {[%clk 0:00:01]} 47. Rxh4+ {[%clk 0:00:06]}  Kg5 {[%clk 0:00:01]} 48. Rh3 {[%clk 0:00:06]} 1-0


[Site "https://www.chess.com"]

[Event "Titled Tuesday Blitz March 29 Late 2022"]
[White "Fishbein, Alexander"]
[Black "Chernobay, Artem"]
[WhiteFideId "2000377"]
[BlackFideId "4167406"]
[WhiteElo "2659"]
[BlackElo "2547"]
[Result "1-0"]
[Round "08"]
[TimeControl "180+1"]
[Date "2022.03.30"]
[WhiteClock "0:00:15"]
[BlackClock "0:00:01"]

1. e4 {[%clk 0:03:00]}  c5 {[%clk 0:02:58]} 2. Nf3 {[%clk 0:02:55]}  d6 {[%clk 0:02:58]} 3. d4 {[%clk 0:02:54]}  cxd4 {[%clk 0:02:59]} 4. Nxd4 {[%clk 0:02:54]}  Nf6 {[%clk 0:02:59]} 5. Nc3 {[%clk 0:02:54]}  a6 {[%clk 0:02:59]} 6. a4 {[%clk 0:02:52]}  e5 {[%clk 0:02:56]} 7. Nf3 {[%clk 0:02:52]}  b6 {[%clk 0:02:51]} 8. Be3 {[%clk 0:02:46]}  Be7 {[%clk 0:02:41]} 9. Bc4 {[%clk 0:02:38]}  Bb7 {[%clk 0:02:20]} 10. Nd5 {[%clk 0:02:35]}  Nxd5 {[%clk 0:02:18]} 11. Bxd5 {[%clk 0:02:35]}  Bxd5 {[%clk 0:02:15]} 12. Qxd5 {[%clk 0:02:36]}  Nd7 {[%clk 0:02:15]} 13. O-O {[%clk 0:02:33]}  O-O {[%clk 0:02:15]} 14. Qb3 {[%clk 0:02:25]}  Qc7 {[%clk 0:02:11]} 15. c3 {[%clk 0:02:21]}  Rab8 {[%clk 0:02:08]} 16. Rfd1 {[%clk 0:02:16]}  Nf6 {[%clk 0:02:02]} 17. Nd2 {[%clk 0:02:15]}  Ng4 {[%clk 0:02:01]} 18. Nf1 {[%clk 0:02:15]}  Kh8 {[%clk 0:01:54]} 19. h3 {[%clk 0:02:08]}  Nf6 {[%clk 0:01:54]} 20. Ng3 {[%clk 0:02:07]}  g6 {[%clk 0:01:47]} 21. Bh6 {[%clk 0:02:05]}  Nd7 {[%clk 0:01:38]} 22. Bxf8 {[%clk 0:02:04]}  Rxf8 {[%clk 0:01:39]} 23. Nf1 {[%clk 0:02:01]}  f5 {[%clk 0:01:18]} 24. exf5 {[%clk 0:01:59]}  gxf5 {[%clk 0:01:17]} 25. Ne3 {[%clk 0:01:58]}  Bg5 {[%clk 0:01:13]} 26. Nd5 {[%clk 0:01:56]}  Qd8 {[%clk 0:01:12]} 27. f4 {[%clk 0:01:46]}  Bh6 {[%clk 0:00:57]} 28. Qb4 {[%clk 0:01:43]}  Nc5 {[%clk 0:00:37]} 29. fxe5 {[%clk 0:01:35]}  dxe5 {[%clk 0:00:32]} 30. Qxb6 {[%clk 0:01:33]}  Qxb6 {[%clk 0:00:24]} 31. Nxb6 {[%clk 0:01:32]}  Ne4 {[%clk 0:00:21]} 32. Nd5 {[%clk 0:01:28]}  Ng3 {[%clk 0:00:18]} 33. Rd3 {[%clk 0:01:26]}  f4 {[%clk 0:00:17]} 34. Rxg3 {[%clk 0:01:19]}  fxg3 {[%clk 0:00:17]} 35. Rf1 {[%clk 0:01:17]}  Rb8 {[%clk 0:00:12]} 36. b4 {[%clk 0:01:14]}  Rd8 {[%clk 0:00:10]} 37. Rd1 {[%clk 0:01:13]}  e4 {[%clk 0:00:08]} 38. c4 {[%clk 0:01:01]}  Rc8 {[%clk 0:00:06]} 39. c5 {[%clk 0:00:53]}  e3 {[%clk 0:00:06]} 40. Kf1 {[%clk 0:00:44]}  Rf8+ {[%clk 0:00:06]} 41. Ke2 {[%clk 0:00:44]}  Rf2+ {[%clk 0:00:06]} 42. Kd3 {[%clk 0:00:44]}  Rxg2 {[%clk 0:00:06]} 43. c6 {[%clk 0:00:43]}  Rd2+ {[%clk 0:00:06]} 44. Rxd2 {[%clk 0:00:41]}  exd2 {[%clk 0:00:07]} 45. Ke2 {[%clk 0:00:14]}  g2 {[%clk 0:00:05]} 46. c7 {[%clk 0:00:14]}  d1=Q+ {[%clk 0:00:04]} 47. Kxd1 {[%clk 0:00:14]}  g1=Q+ {[%clk 0:00:04]} 48. Kc2 {[%clk 0:00:15]}  Qg2+ {[%clk 0:00:03]} 49. Kc3 {[%clk 0:00:15]}  Qf3+ {[%clk 0:00:02]} 50. Kc4 {[%clk 0:00:15]}  Qe4+ {[%clk 0:00:02]} 51. Kc5 {[%clk 0:00:15]}  Qc2+ {[%clk 0:00:01]} 52. Kd6 {[%clk 0:00:15]} 1-0


[Site "https://www.chess.com"]

[Event "Titled Tuesday Blitz March 29 Late 2022"]
[White "Gatterer, Florian"]
[Black "Przybylski, Wojciech"]
[WhiteFideId "811688"]
[BlackFideId "1117599"]
[WhiteElo "2218"]
[BlackElo "2133"]
[Result "1-0"]
[Round "08"]
[TimeControl "180+1"]
[Date "2022.03.30"]
[WhiteClock "0:00:28"]
[BlackClock "0:00:55"]

1. d4 {[%clk 0:03:00]}  d5 {[%clk 0:02:57]} 2. Nf3 {[%clk 0:02:58]}  c6 {[%clk 0:02:58]} 3. g3 {[%clk 0:02:56]}  Nf6 {[%clk 0:02:59]} 4. Bg2 {[%clk 0:02:55]}  h5 {[%clk 0:02:59]} 5. h4 {[%clk 0:02:52]}  Bg4 {[%clk 0:02:58]} 6. Ne5 {[%clk 0:02:50]}  Nbd7 {[%clk 0:02:57]} 7. Bf4 {[%clk 0:02:49]}  Qb6 {[%clk 0:02:55]} 8. b3 {[%clk 0:02:44]}  e6 {[%clk 0:02:53]} 9. O-O {[%clk 0:02:43]}  a5 {[%clk 0:02:40]} 10. c4 {[%clk 0:02:34]}  Nxe5 {[%clk 0:02:37]} 11. c5 {[%clk 0:02:25]}  Qa6 {[%clk 0:02:33]} 12. dxe5 {[%clk 0:02:18]}  Bxe2 {[%clk 0:02:32]} 13. Qc1 {[%clk 0:02:08]}  Nd7 {[%clk 0:02:30]} 14. Re1 {[%clk 0:02:02]}  Nxc5 {[%clk 0:02:27]} 15. Qd2 {[%clk 0:01:42]}  Bd3 {[%clk 0:02:15]} 16. Nc3 {[%clk 0:01:38]}  d4 {[%clk 0:01:55]} 17. Ne4 {[%clk 0:01:23]}  Nxe4 {[%clk 0:01:50]} 18. Bxe4 {[%clk 0:01:23]}  Bxe4 {[%clk 0:01:40]} 19. Rxe4 {[%clk 0:01:24]}  Bc5 {[%clk 0:01:39]} 20. Rc1 {[%clk 0:01:23]}  b6 {[%clk 0:01:37]} 21. Bg5 {[%clk 0:01:10]}  O-O {[%clk 0:01:29]} 22. Bf6 {[%clk 0:01:03]}  Rfd8 {[%clk 0:01:04]} 23. Qg5 {[%clk 0:00:45]}  Bf8 {[%clk 0:01:03]} 24. Bxd8 {[%clk 0:00:45]}  d3 {[%clk 0:01:03]} 25. Be7 {[%clk 0:00:38]}  d2 {[%clk 0:01:00]} 26. Rd1 {[%clk 0:00:35]}  Qd3 {[%clk 0:00:56]} 27. Bxf8 {[%clk 0:00:30]}  Qxe4 {[%clk 0:00:55]} 28. Qxg7# {[%clk 0:00:28]} 1-0


[Site "https://www.chess.com"]

[Event "Titled Tuesday Blitz March 29 Late 2022"]
[White "Goltsev, Dmitry"]
[Black "Korchmar, Vasiliy"]
[WhiteFideId "24176710"]
[BlackFideId "24131750"]
[WhiteElo "2273"]
[BlackElo "2370"]
[Result "0-1"]
[Round "08"]
[TimeControl "180+1"]
[Date "2022.03.29"]
[WhiteClock "0:00:04"]
[BlackClock "0:01:00"]

1. e4 {[%clk 0:02:56]}  c5 {[%clk 0:03:00]} 2. Nf3 {[%clk 0:02:57]}  d6 {[%clk 0:03:00]} 3. d4 {[%clk 0:02:57]}  cxd4 {[%clk 0:03:01]} 4. Nxd4 {[%clk 0:02:58]}  Nf6 {[%clk 0:03:02]} 5. Nc3 {[%clk 0:02:58]}  Nc6 {[%clk 0:03:02]} 6. Be2 {[%clk 0:02:58]}  e5 {[%clk 0:03:02]} 7. Nb3 {[%clk 0:02:58]}  h6 {[%clk 0:03:02]} 8. O-O {[%clk 0:02:58]}  Be7 {[%clk 0:03:02]} 9. f4 {[%clk 0:02:58]}  exf4 {[%clk 0:02:57]} 10. Bxf4 {[%clk 0:02:59]}  O-O {[%clk 0:02:58]} 11. Qd2 {[%clk 0:02:57]}  Be6 {[%clk 0:02:57]} 12. Rad1 {[%clk 0:02:57]}  Ne5 {[%clk 0:02:56]} 13. h3 {[%clk 0:02:54]}  Rc8 {[%clk 0:02:55]} 14. Nd4 {[%clk 0:02:53]}  Nfd7 {[%clk 0:02:47]} 15. Nxe6 {[%clk 0:02:51]}  fxe6 {[%clk 0:02:48]} 16. Be3 {[%clk 0:02:50]}  a6 {[%clk 0:02:42]} 17. Rxf8+ {[%clk 0:02:45]}  Nxf8 {[%clk 0:02:43]} 18. Bd4 {[%clk 0:02:43]}  Nfg6 {[%clk 0:02:41]} 19. Qe3 {[%clk 0:02:37]}  b5 {[%clk 0:02:39]} 20. a3 {[%clk 0:02:36]}  Bg5 {[%clk 0:02:32]} 21. Qg3 {[%clk 0:02:34]}  Bh4 {[%clk 0:02:17]} 22. Qh2 {[%clk 0:02:31]}  Qg5 {[%clk 0:02:17]} 23. Kh1 {[%clk 0:02:24]}  Nf4 {[%clk 0:02:01]} 24. Be3 {[%clk 0:02:17]}  Bg3 {[%clk 0:01:59]} 25. Qg1 {[%clk 0:02:16]}  Qh4 {[%clk 0:01:53]} 26. Bxf4 {[%clk 0:02:07]}  Bxf4 {[%clk 0:01:54]} 27. Rf1 {[%clk 0:01:31]}  Qg3 {[%clk 0:01:48]} 28. Bf3 {[%clk 0:01:12]}  Qg5 {[%clk 0:01:37]} 29. Qf2 {[%clk 0:00:57]}  Bd2 {[%clk 0:01:30]} 30. Ne2 {[%clk 0:00:46]}  Be3 {[%clk 0:01:24]} 31. Qe1 {[%clk 0:00:29]}  Rxc2 {[%clk 0:01:23]} 32. h4 {[%clk 0:00:09]}  Qg6 {[%clk 0:01:19]} 33. Qg3 {[%clk 0:00:02]}  Qxg3 {[%clk 0:01:15]} 34. Nxg3 {[%clk 0:00:03]}  Rxb2 {[%clk 0:01:15]} 35. Nh5 {[%clk 0:00:03]}  Rc2 {[%clk 0:01:11]} 36. Bd1 {[%clk 0:00:03]}  Rc1 {[%clk 0:01:10]} 37. Ng3 {[%clk 0:00:03]}  Bc5 {[%clk 0:01:06]} 38. Bb3 {[%clk 0:00:03]}  Rxf1+ {[%clk 0:01:02]} 39. Nxf1 {[%clk 0:00:04]}  Bxa3 {[%clk 0:01:01]} 40. Bxe6+ {[%clk 0:00:04]}  Kf8 {[%clk 0:01:02]} 41. Ne3 {[%clk 0:00:04]}  Bc5 {[%clk 0:01:00]} 42. Nd5 {[%clk 0:00:04]}  a5 {[%clk 0:01:00]} 0-1


[Site "https://www.chess.com"]